fUSD/lending_fUSD_20260327
["ID","MTS","AMOUNT","RATE_DAILY","PERIOD"]
[418947464,1774618243637,-500.0,0.00039999,31]
[418947465,1774618243647,-500.0,0.00039999,31]
[418947466,1774618243657,-500.0,0.00039999,31]
[418947467,1774618243668,-500.0,0.00039999,31]
[418947468,1774618243678,-327.0,0.0004,5]
[418947469,1774618243687,-425.0,0.0004,5]
[418947470,1774618243697,-64292.41881871,0.0004,5]
[418947471,1774618243707,-89806.07706535,0.0004,30]
[418947472,1774618243716,-63183.86,0.0004,7]
[418947473,1774618243726,-246.17,0.0004,30]
[418947474,1774618243735,-199.93,0.0004,120]
[418947475,1774618243745,-70821.7,0.0004,120]
[418947476,1774618243755,-151.0,0.0004,120]
[418947477,1774618243766,-200.0,0.0004,120]
[418947478,1774618243776,-866.599017,0.0004,30]
[418947479,1774618243786,-151.0,0.0004,120]
[418947480,1774618243795,-151.0,0.0004,120]
[418947481,1774618243805,-151.0,0.0004,120]
[418947482,1774618243815,-151.0,0.0004,120]
[418947483,1774618243824,-2832.88,0.0004,2]
[418947484,1774618243834,-2568.0,0.00040114,2]
[418947485,1774618243843,-150.0,0.00040165,2]
[418947486,1774618243854,-202.0,0.00040362,30]
[418947487,1774618243863,-304.0,0.00040435,2]
[418947488,1774618243873,-166.66,0.00040461,30]
[418947489,1774618243883,-2542.34942924,0.00040719,28]
[418947490,1774618243892,-311.0,0.000408,30]
[418947491,1774618243902,-209.0,0.000408,30]
[418947492,1774618243912,-306.0,0.000408,30]
[418947493,1774618243922,-995.0,0.000408,30]
[418947494,1774618243932,-750.53116872,0.0004093,4]
[418947495,1774618243942,-151.000004,0.0004094,120]
[418947496,1774618243952,-193497.0,0.0004095,60]
[418947497,1774618243962,-170.17682999,0.0004095,120]
[418947498,1774618243972,-2000.0,0.00041,2]
[418947500,1774618243983,-238.33,0.00041048,14]
[418947502,1774618243993,-150.0,0.00041092,17]
[418947503,1774618244002,-150.0,0.00041092,17]
[418947504,1774618244012,-163.0,0.00041092,17]
[418947505,1774618244022,-561.75130306,0.00041095,17]
[418947506,1774618244032,-500.0,0.00041095,17]
[418947507,1774618244041,-500.0,0.00041095,17]
[418947508,1774618244050,-500.0,0.00041095,17]
[418947509,1774618244060,-500.0,0.00041095,17]
[418947510,1774618244070,-500.0,0.00041095,17]
[418947511,1774618244079,-500.0,0.00041095,17]
[418947512,1774618244090,-500.0,0.00041095,17]
[418947513,1774618244099,-500.0,0.00041095,17]
[418947514,1774618244109,-500.0,0.00041095,17]
[418947515,1774618244119,-500.0,0.00041095,17]
[418947516,1774618244129,-500.0,0.00041095,17]
[418947517,1774618244141,-500.0,0.00041095,17]
[418947518,1774618244151,-500.0,0.00041095,17]
[418947519,1774618244161,-500.0,0.00041095,2]
[418947520,1774618244171,-500.0,0.00041095,17]
[418947521,1774618244181,-515.0416559,0.00041095,17]
[418947522,1774618244191,-500.0,0.00041095,17]
[418947523,1774618244201,-500.0,0.00041095,17]
[418947524,1774618244210,-539.4623366,0.00041095,17]
[418947525,1774618244220,-500.0,0.00041095,17]
[418947526,1774618244229,-500.0,0.00041095,17]
[418947527,1774618244238,-500.0,0.00041095,17]
[418947528,1774618244248,-500.0,0.00041095,17]
[418947529,1774618244257,-500.0,0.00041095,17]
[418947530,1774618244267,-372.97646579,0.00041095,17]
[418947531,1774618244276,-500.0,0.00041095,17]
[418947532,1774618244286,-179.90833105,0.00041095,17]
[418947533,1774618244295,-500.0,0.00041095,17]
[418947534,1774618244304,-500.0,0.00041095,17]
[418947535,1774618244314,-500.0,0.00041095,17]
[418947536,1774618244323,-500.0,0.00041095,17]
[418947537,1774618244332,-500.0,0.00041095,17]
[418947538,1774618244343,-500.0,0.00041095,17]
[418947539,1774618244352,-500.0,0.00041095,17]
[418947540,1774618244362,-500.0,0.00041095,17]
[418947541,1774618244371,-500.0,0.00041095,2]
[418947542,1774618244381,-374.88744669,0.00041095,17]
[418947543,1774618244392,-500.0,0.00041095,17]
[418947544,1774618244402,-500.0,0.00041095,17]
[418947545,1774618244411,-621.00845446,0.00041095,17]
[418947546,1774618244420,-504.94464831,0.00041095,17]
[418947547,1774618244429,-500.0,0.00041095,17]
[418947548,1774618244439,-500.0,0.00041095,17]
[418947549,1774618244448,-500.0,0.00041095,17]
[418947550,1774618244458,-500.0,0.00041095,17]
[418947551,1774618244468,-500.0,0.00041095,17]
[418947552,1774618244478,-500.0,0.00041095,17]
[418947553,1774618244487,-500.0,0.00041095,17]
[418947554,1774618244496,-500.0,0.00041095,17]
[418947555,1774618244505,-500.0,0.00041095,17]
[418947556,1774618244516,-500.0,0.00041095,17]
[418947557,1774618244525,-307.74181907,0.00041095,17]
[418947558,1774618244534,-500.0,0.00041095,17]
[418947559,1774618244544,-500.0,0.00041095,17]
[418947560,1774618244554,-546.03,0.00041095,17]
[418947561,1774618244563,-500.0,0.00041095,17]
[418947562,1774618244572,-500.0,0.00041095,17]
[418947563,1774618244581,-500.0,0.00041095,17]
[418947564,1774618244590,-270.76,0.00041095,17]
[418947565,1774618244600,-476.22348786,0.00041095,17]
[418947566,1774618244609,-621.55,0.00041095,17]
[418947567,1774618244618,-188.27629725,0.00041095,17]
[418947568,1774618244627,-520.67625989,0.00041095,17]
[418947569,1774618244637,-284.78316435,0.00041095,17]
[418947570,1774618244647,-500.0,0.00041095,17]
[418947571,1774618244657,-500.0,0.00041095,17]
[418947572,1774618244666,-500.0,0.00041095,17]
[418947573,1774618244675,-500.0,0.00041095,17]
[418947574,1774618244685,-500.0,0.00041095,17]
[418947575,1774618244694,-618.57546876,0.00041095,17]
[418947576,1774618244703,-604.77586,0.00041095,17]
[418947577,1774618244712,-500.0,0.00041095,17]
[418947578,1774618244722,-500.0,0.00041095,7]
[418947579,1774618244731,-500.0,0.00041095,17]
[418947580,1774618244741,-500.0,0.00041095,17]
[418947581,1774618244750,-514.0598299,0.00041095,17]
[418947582,1774618244760,-500.0,0.00041095,17]
[418947583,1774618244769,-500.0,0.00041095,17]
[418947584,1774618244779,-509.90292085,0.00041095,17]
[418947585,1774618244789,-393.95896115,0.00041095,17]
[418947586,1774618244799,-2726.12,0.00041095,2]
[418947587,1774618244808,-500.0,0.00041095,17]
[418947588,1774618244817,-500.0,0.00041095,17]
[418947589,1774618244827,-500.0,0.00041095,17]
[418947590,1774618244836,-193.50149756,0.00041095,17]
[418947591,1774618244845,-500.0,0.00041095,17]
[418947592,1774618244854,-500.0,0.00041095,17]
[418947593,1774618244864,-500.0,0.00041095,17]
[418947594,1774618244873,-500.0,0.00041095,17]
[418947595,1774618244882,-500.0,0.00041095,17]
[418947596,1774618244893,-500.0,0.00041095,17]
[418947597,1774618244903,-500.0,0.00041095,17]
[418947598,1774618244913,-500.0,0.00041095,17]
[418947599,1774618244922,-500.0,0.00041095,17]
[418947600,1774618244931,-500.0,0.00041095,17]
[418947601,1774618244941,-500.0,0.00041095,17]
[418947602,1774618244950,-500.0,0.00041095,17]
[418947603,1774618244960,-500.0,0.00041095,17]
[418947604,1774618244969,-500.0,0.00041095,17]
[418947605,1774618244978,-600.75550948,0.00041095,17]
[418947606,1774618244987,-500.0,0.00041095,17]
[418947607,1774618244996,-378.67239832,0.00041095,17]
[418947608,1774618245006,-596.13,0.00041095,17]
[418947609,1774618245015,-500.0,0.00041095,17]
[418947610,1774618245024,-218.11052384,0.00041095,17]
[418947611,1774618245033,-407.93317414,0.00041095,17]
[418947612,1774618245042,-500.0,0.00041095,17]
[418947613,1774618245052,-500.0,0.00041095,17]
[418947614,1774618245061,-500.0,0.00041095,17]
[418947615,1774618245070,-562.03252311,0.00041095,17]
[418947616,1774618245079,-500.0,0.00041095,17]
[418947617,1774618245088,-500.0,0.00041095,17]
[418947618,1774618245097,-248.66202539,0.00041095,120]
[418947619,1774618245106,-500.0,0.00041095,17]
[418947620,1774618245115,-209.82477677,0.00041095,17]
[418947621,1774618245124,-500.0,0.00041095,17]
[418947622,1774618245133,-500.0,0.00041095,17]
[418947623,1774618245143,-500.0,0.00041095,17]
[418947624,1774618245152,-500.0,0.00041095,17]
[418947625,1774618245161,-500.0,0.00041095,7]
[418947626,1774618245171,-500.0,0.00041095,17]
[418947627,1774618245180,-500.0,0.00041095,17]
[418947628,1774618245189,-500.0,0.00041095,17]
[418947629,1774618245196,-500.0,0.00041095,17]
[418947630,1774618245205,-500.0,0.00041095,17]
[418947631,1774618245214,-500.0,0.00041095,17]
[418947632,1774618245225,-634.50329308,0.00041095,17]
[418947633,1774618245234,-1066.34,0.00041095,17]
[418947634,1774618245244,-500.0,0.00041095,17]
[418947635,1774618245254,-500.0,0.00041095,17]
[418947636,1774618245264,-272.93227288,0.00041095,17]
[418947637,1774618245273,-500.0,0.00041095,17]
[418947638,1774618245283,-500.0,0.00041095,17]
[418947639,1774618245293,-265.57223625,0.00041095,17]
[418947640,1774618245303,-500.0,0.00041095,17]
[418947641,1774618245313,-500.0,0.00041095,17]
[418947642,1774618245323,-500.0,0.00041095,17]
[418947643,1774618245333,-500.0,0.00041095,17]
[418947644,1774618245343,-500.0,0.00041095,17]
[418947645,1774618245353,-500.0,0.00041095,17]
[418947646,1774618245362,-641.12008392,0.00041095,17]
[418947647,1774618245371,-471.21260185,0.00041095,17]
[418947648,1774618245383,-500.0,0.00041095,17]
[418947649,1774618245396,-500.0,0.00041095,17]
[418947650,1774618245405,-334.29656334,0.00041095,17]
[418947651,1774618245415,-171.57743705,0.00041095,17]
[418947652,1774618245424,-500.0,0.00041095,17]
[418947653,1774618245434,-500.0,0.00041095,17]
[418947654,1774618245444,-500.0,0.00041095,17]
[418947655,1774618245453,-500.0,0.00041095,17]
[418947656,1774618245463,-281.31209237,0.00041095,17]
[418947657,1774618245472,-598.64413385,0.00041095,17]
[418947658,1774618245483,-152.15910831,0.00041095,17]
[418947659,1774618245492,-500.0,0.00041095,17]
[418947660,1774618245502,-397.34283743,0.00041095,17]
[418947661,1774618245511,-609.27721092,0.00041095,14]
[418947662,1774618245520,-500.0,0.00041095,17]
[418947663,1774618245530,-500.0,0.00041095,17]
[418947664,1774618245540,-500.0,0.00041095,17]
[418947665,1774618245549,-500.0,0.00041095,17]
[418947666,1774618245558,-500.0,0.00041095,17]
[418947667,1774618245568,-500.0,0.00041095,17]
[418947668,1774618245577,-500.0,0.00041095,17]
[418947669,1774618245587,-237.14170911,0.00041095,17]
[418947670,1774618245596,-590.29679416,0.00041095,17]
[418947671,1774618245605,-580.82956105,0.00041095,17]
[418947672,1774618245615,-888.24,0.00041095,17]
[418947673,1774618245624,-2057.18,0.00041095,17]
[418947674,1774618245634,-500.0,0.00041095,17]
[418947675,1774618245647,-195.9035429,0.00041095,17]
[418947676,1774618245657,-500.0,0.00041095,17]
[418947677,1774618245667,-638.22877001,0.00041095,17]
[418947678,1774618245676,-500.0,0.00041095,17]
[418947679,1774618245686,-500.0,0.00041095,17]
[418947680,1774618245696,-270.11113081,0.00041095,17]
[418947681,1774618245705,-232.7,0.00041095,17]
[418947682,1774618245714,-283.40892847,0.00041095,17]
[418947683,1774618245723,-500.0,0.00041095,17]
[418947684,1774618245732,-500.0,0.00041095,17]
[418947685,1774618245741,-500.0,0.00041095,17]
[418947686,1774618245750,-500.0,0.00041095,17]
[418947687,1774618245759,-500.0,0.00041095,17]
[418947688,1774618245768,-500.0,0.00041095,17]
[418947689,1774618245777,-500.0,0.00041095,17]
[418947690,1774618245787,-260.96217533,0.00041095,17]
[418947691,1774618245797,-364.60393986,0.00041095,17]
[418947692,1774618245806,-500.0,0.00041095,17]
[418947693,1774618245816,-500.0,0.00041095,17]
[418947694,1774618245825,-500.0,0.00041095,17]
[418947695,1774618245834,-305.53730421,0.00041095,17]
[418947696,1774618245843,-220.57651455,0.00041095,17]
[418947697,1774618245853,-157.09813906,0.00041095,17]
[418947698,1774618245862,-500.0,0.00041095,17]
[418947699,1774618245871,-500.0,0.00041095,7]
[418947700,1774618245880,-169.0,0.00041095,17]
[418947701,1774618245892,-500.0,0.00041095,17]
[418947702,1774618245901,-165.2510565,0.00041095,17]
[418947703,1774618245910,-500.0,0.00041095,17]
[418947704,1774618245920,-236.22692276,0.00041095,17]
[418947705,1774618245930,-500.0,0.00041095,17]
[418947706,1774618245939,-384.49750749,0.00041095,17]
[418947707,1774618245948,-537.58,0.00041095,17]
[418947708,1774618245957,-357.40835787,0.00041095,17]
[418947709,1774618245967,-500.0,0.00041095,17]
[418947710,1774618245976,-500.0,0.00041095,17]
[418947711,1774618245985,-500.0,0.00041095,17]
[418947712,1774618245994,-500.0,0.00041095,17]
[418947713,1774618246003,-500.0,0.00041095,17]
[418947714,1774618246013,-500.0,0.00041095,17]
[418947715,1774618246022,-500.0,0.00041095,17]
[418947716,1774618246143,-500.0,0.00041095,17]
[418947717,1774618246172,-500.0,0.00041095,17]
[418947718,1774618246182,-500.0,0.00041095,17]
[418947719,1774618246191,-321.64858559,0.00041095,17]
[418947720,1774618246201,-500.0,0.00041095,17]
[418947721,1774618246210,-500.0,0.00041095,17]
[418947722,1774618246219,-603.4439668,0.00041095,17]
[418947723,1774618246228,-567.04,0.00041095,2]
[418947724,1774618246237,-550.30736831,0.00041095,17]
[418947725,1774618246247,-500.0,0.00041095,17]
[418947726,1774618246256,-500.0,0.00041095,17]
[418947727,1774618246265,-500.0,0.00041095,17]
[418947728,1774618246274,-500.0,0.00041095,17]
[418947729,1774618246284,-500.0,0.00041095,17]
[418947730,1774618246293,-500.0,0.00041095,17]
[418947731,1774618246302,-500.0,0.00041095,17]
[418947732,1774618246311,-500.0,0.00041095,17]
[418947733,1774618246321,-500.0,0.00041095,2]
[418947734,1774618246330,-562.79356789,0.00041095,17]
[418947735,1774618246339,-500.0,0.00041095,17]
[418947736,1774618246348,-500.0,0.00041095,17]
[418947737,1774618246358,-1532.42,0.00041095,2]
[418947738,1774618246367,-500.0,0.00041095,17]
[418947739,1774618246376,-660.66,0.00041095,17]
[418947740,1774618246385,-169.0,0.00041096,30]
[418947741,1774618246397,-154.0,0.00041096,30]
[418947742,1774618246406,-155.0,0.00041096,30]
[418947743,1774618246416,-188.0,0.00041096,30]
[418947744,1774618246425,-205.0,0.00041096,30]
[418947745,1774618246434,-218.0,0.00041096,30]
[418947746,1774618246443,-151.0,0.00041096,120]
[418947747,1774618246452,-151.0,0.00041096,120]
[418947748,1774618246461,-151.0,0.00041096,120]
[418947749,1774618246471,-233.431011,0.00041096,120]
[418947750,1774618246480,-1303.4,0.00041096,2]
[418947751,1774618246489,-2000.0,0.000411,7]
[418947752,1774618246499,-166.66,0.00041262,30]
[418947753,1774618246508,-5000.0,0.00041284,120]
[418947754,1774618246517,-225.62,0.00041284,2]
[418947755,1774618246527,-246.17,0.000413,30]
[418947756,1774618246536,-179.04,0.0004136,120]
[418947757,1774618246545,-500.0,0.00041369,17]
[418947758,1774618246555,-567.65856683,0.00041369,17]
[418947759,1774618246565,-500.0,0.00041369,17]
[418947760,1774618246576,-500.0,0.00041369,17]
[418947761,1774618246586,-500.0,0.00041369,17]
[418947762,1774618246597,-500.0,0.00041369,17]
[418947763,1774618246606,-500.0,0.00041369,17]
[418947764,1774618246615,-500.0,0.00041369,17]
[418947765,1774618246625,-500.0,0.00041369,17]
[418947766,1774618246635,-500.0,0.00041369,17]
[418947767,1774618246645,-500.0,0.00041369,17]
[418947768,1774618246655,-536.05462601,0.00041369,17]
[418947769,1774618246665,-500.0,0.00041369,17]
[418947770,1774618246675,-500.0,0.00041369,2]
[418947771,1774618246684,-500.0,0.00041369,17]
[418947772,1774618246693,-549.74225267,0.00041369,17]
[418947773,1774618246703,-519.47649758,0.00041369,17]
[418947774,1774618246713,-558.12531642,0.00041369,17]
[418947775,1774618246722,-500.0,0.00041369,17]
[418947776,1774618246731,-265.66403272,0.00041369,17]
[418947777,1774618246740,-500.0,0.00041369,17]
[418947778,1774618246749,-500.0,0.00041369,17]
[418947779,1774618246759,-500.0,0.00041369,17]
[418947780,1774618246768,-596.5,0.00041369,17]
[418947781,1774618246777,-500.0,0.00041369,17]
[418947782,1774618246786,-500.0,0.00041369,17]
[418947783,1774618246795,-500.0,0.00041369,17]
[418947784,1774618246804,-500.0,0.00041369,17]
[418947785,1774618246814,-500.0,0.00041369,17]
[418947786,1774618246824,-500.0,0.00041369,17]
[418947787,1774618246833,-500.0,0.00041369,17]
[418947788,1774618246843,-500.0,0.00041369,2]
[418947789,1774618246852,-500.0,0.00041369,17]
[418947790,1774618246861,-500.0,0.00041369,17]
[418947791,1774618246871,-500.0,0.00041369,17]
[418947792,1774618246880,-500.0,0.00041369,17]
[418947793,1774618246890,-500.0,0.00041369,17]
[418947794,1774618246900,-309.78882563,0.00041369,17]
[418947795,1774618246909,-512.33530909,0.00041369,17]
[418947796,1774618246918,-567.3011842,0.00041369,17]
[418947797,1774618246927,-500.0,0.00041369,17]
[418947798,1774618246936,-500.0,0.00041369,17]
[418947799,1774618246946,-500.0,0.00041369,17]
[418947800,1774618246955,-500.0,0.00041369,17]
[418947801,1774618246964,-386.89957368,0.00041369,17]
[418947802,1774618246974,-500.0,0.00041369,17]
[418947803,1774618246984,-546.03,0.00041369,17]
[418947804,1774618246993,-406.01647927,0.00041369,17]
[418947805,1774618247003,-500.0,0.00041369,17]
[418947806,1774618247012,-500.0,0.00041369,17]
[418947807,1774618247022,-500.0,0.00041369,17]
[418947808,1774618247031,-500.0,0.00041369,17]
[418947809,1774618247039,-500.0,0.00041369,17]
[418947810,1774618247049,-638.88389585,0.00041369,17]
[418947811,1774618247058,-500.0,0.00041369,17]
[418947812,1774618247068,-236.06626776,0.00041369,17]
[418947813,1774618247077,-500.0,0.00041369,7]
[418947814,1774618247086,-366.4519336,0.00041369,17]
[418947815,1774618247095,-500.0,0.00041369,17]
[418947816,1774618247105,-594.99338794,0.00041369,17]
[418947817,1774618247114,-525.49089635,0.00041369,17]
[418947818,1774618247124,-2726.12,0.00041369,2]
[418947819,1774618247134,-500.0,0.00041369,17]
[418947820,1774618247144,-500.0,0.00041369,17]
[418947821,1774618247153,-217.21274123,0.00041369,17]
[418947822,1774618247162,-500.0,0.00041369,17]
[418947823,1774618247172,-500.0,0.00041369,17]
[418947824,1774618247182,-500.0,0.00041369,17]
[418947825,1774618247192,-500.0,0.00041369,17]
[418947826,1774618247202,-500.0,0.00041369,17]
[418947827,1774618247211,-500.0,0.00041369,17]
[418947828,1774618247221,-500.0,0.00041369,17]
[418947829,1774618247231,-500.0,0.00041369,17]
[418947830,1774618247240,-500.0,0.00041369,17]
[418947831,1774618247250,-195.36907496,0.00041369,17]
[418947832,1774618247260,-500.0,0.00041369,17]
[418947833,1774618247269,-500.0,0.00041369,17]
[418947834,1774618247279,-500.0,0.00041369,17]
[418947835,1774618247288,-500.0,0.00041369,17]
[418947836,1774618247298,-500.0,0.00041369,17]
[418947837,1774618247308,-596.13,0.00041369,17]
[418947838,1774618247317,-500.0,0.00041369,17]
[418947839,1774618247326,-500.0,0.00041369,17]
[418947840,1774618247335,-500.0,0.00041369,17]
[418947841,1774618247344,-500.0,0.00041369,17]
[418947842,1774618247353,-500.0,0.00041369,17]
[418947843,1774618247362,-500.0,0.00041369,17]
[418947844,1774618247371,-500.0,0.00041369,17]
[418947845,1774618247380,-500.0,0.00041369,17]
[418947846,1774618247391,-500.0,0.00041369,17]
[418947847,1774618247400,-500.0,0.00041369,17]
[418947848,1774618247410,-500.0,0.00041369,17]
[418947849,1774618247419,-500.0,0.00041369,7]
[418947850,1774618247429,-500.0,0.00041369,17]
[418947851,1774618247439,-500.0,0.00041369,17]
[418947852,1774618247448,-500.0,0.00041369,17]
[418947853,1774618247457,-500.0,0.00041369,17]
[418947854,1774618247467,-500.0,0.00041369,17]
[418947855,1774618247477,-500.0,0.00041369,17]
[418947856,1774618247486,-1066.34,0.00041369,17]
[418947857,1774618247495,-500.0,0.00041369,17]
[418947858,1774618247505,-500.0,0.00041369,17]
[418947859,1774618247514,-500.0,0.00041369,17]
[418947860,1774618247523,-500.0,0.00041369,17]
[418947861,1774618247532,-500.0,0.00041369,17]
[418947862,1774618247542,-500.0,0.00041369,17]
[418947863,1774618247552,-500.0,0.00041369,17]
[418947864,1774618247561,-500.0,0.00041369,17]
[418947865,1774618247570,-204.2991733,0.00041369,17]
[418947866,1774618247580,-500.0,0.00041369,17]
[418947867,1774618247590,-206.26220018,0.00041369,17]
[418947868,1774618247600,-500.0,0.00041369,17]
[418947869,1774618247609,-624.71044746,0.00041369,17]
[418947870,1774618247619,-500.0,0.00041369,17]
[418947871,1774618247628,-500.0,0.00041369,17]
[418947872,1774618247638,-500.0,0.00041369,17]
[418947873,1774618247647,-500.0,0.00041369,17]
[418947874,1774618247657,-334.68230631,0.00041369,17]
[418947875,1774618247666,-500.0,0.00041369,17]
[418947876,1774618247676,-500.0,0.00041369,17]
[418947877,1774618247686,-527.74769207,0.00041369,17]
[418947878,1774618247695,-500.0,0.00041369,17]
[418947879,1774618247705,-500.0,0.00041369,17]
[418947880,1774618247714,-500.0,0.00041369,17]
[418947881,1774618247723,-888.24,0.00041369,17]
[418947882,1774618247733,-2057.18,0.00041369,17]
[418947883,1774618247743,-500.0,0.00041369,17]
[418947884,1774618247752,-500.0,0.00041369,17]
[418947885,1774618247762,-500.0,0.00041369,17]
[418947886,1774618247771,-500.0,0.00041369,17]
[418947887,1774618247780,-500.0,0.00041369,17]
[418947888,1774618247789,-500.0,0.00041369,17]
[418947889,1774618247799,-500.0,0.00041369,17]
[418947890,1774618247808,-500.0,0.00041369,17]
[418947891,1774618247818,-500.0,0.00041369,17]
[418947892,1774618247827,-500.0,0.00041369,17]
[418947893,1774618247836,-500.0,0.00041369,17]
[418947894,1774618247846,-185.56779901,0.00041369,17]
[418947895,1774618247855,-500.0,0.00041369,17]
[418947896,1774618247864,-500.0,0.00041369,17]
[418947897,1774618247874,-500.0,0.00041369,17]
[418947898,1774618247883,-500.0,0.00041369,7]
[418947899,1774618247893,-500.0,0.00041369,17]
[418947900,1774618247902,-500.0,0.00041369,17]
[418947901,1774618247912,-593.07514642,0.00041369,17]
[418947902,1774618247922,-537.58,0.00041369,17]
[418947903,1774618247932,-500.0,0.00041369,17]
[418947904,1774618247941,-500.0,0.00041369,17]
[418947905,1774618247950,-500.0,0.00041369,17]
[418947906,1774618247960,-500.0,0.00041369,17]
[418947907,1774618247969,-500.0,0.00041369,17]
[418947908,1774618247979,-500.0,0.00041369,17]
[418947909,1774618247988,-500.0,0.00041369,17]
[418947910,1774618247997,-500.0,0.00041369,17]
[418947911,1774618248006,-500.0,0.00041369,17]
[418947912,1774618248015,-500.0,0.00041369,17]
[418947913,1774618248025,-500.0,0.00041369,17]
[418947914,1774618248034,-567.04,0.00041369,2]
[418947915,1774618248043,-500.0,0.00041369,17]
[418947916,1774618248053,-500.0,0.00041369,17]
[418947917,1774618248062,-500.0,0.00041369,17]
[418947918,1774618248071,-500.0,0.00041369,17]
[418947919,1774618248080,-557.00551238,0.00041369,17]
[418947920,1774618248089,-500.0,0.00041369,17]
[418947921,1774618248098,-500.0,0.00041369,17]
[418947922,1774618248108,-500.0,0.00041369,17]
[418947923,1774618248117,-500.0,0.00041369,2]
[418947924,1774618248126,-500.0,0.00041369,17]
[418947925,1774618248135,-500.0,0.00041369,17]
[418947926,1774618248148,-1532.42,0.00041369,2]
[418947927,1774618248158,-500.0,0.00041369,17]
[418947928,1774618248167,-660.66,0.00041369,17]
[418947929,1774618248177,-264.28161645,0.00041369,2]
[418947930,1774618248186,-19001.4283285,0.000414,7]
[418947931,1774618248335,-11010.80915455,0.000414,7]
[418947932,1774618248347,-17749.82939606,0.000414,7]
[418947933,1774618248369,-322.62185766,0.000414,7]
[418947934,1774618248384,-1867.03752048,0.000414,7]
[418947937,1774618249921,-500.0,0.00041095,17]
[418947938,1774618249930,-639.59955174,0.00041095,17]
[418947939,1774618249940,-500.0,0.00041369,17]
[418947940,1774618249949,-555.48318851,0.000414,7]
[418947941,1774618250021,-798.86056752,0.000414,7]
[418947942,1774618250054,-250.25170825,0.000414,7]
[418947943,1774618250066,-7250.0,0.000414,7]
[418947944,1774618250080,-1419.14,0.000414,7]
[418947945,1774618250456,-500.0,0.00039999,31]
[418947946,1774618250466,-500.0,0.00039999,31]
[418947947,1774618250476,-126.91063759,0.00041095,17]
[418947948,1774618250487,-404.90868233,0.00041095,17]
[418947949,1774618250497,-2958.39827847,0.000414,7]
[418947950,1774618250507,-10309.32528278,0.000415,10]
[418947951,1774618250516,-515.05957669,0.00041643,17]
[418947952,1774618250526,-500.0,0.00041643,17]
[418947953,1774618250535,-500.0,0.00041643,17]
[418947954,1774618250544,-523.91538633,0.00041643,17]
[418947955,1774618250554,-515.08868334,0.00041643,17]
[418947956,1774618250563,-521.08032933,0.00041643,17]
[418947957,1774618250572,-543.4616181,0.00041643,17]
[418947958,1774618250582,-520.83753092,0.00041643,17]
[418947959,1774618250591,-364.72834564,0.00041643,17]
[418947960,1774618250601,-189.84046121,0.00041643,2]
[418947961,1774618250612,-500.43000746,0.00041643,17]
[418947962,1774618250622,-500.0,0.00041643,17]
[418947963,1774618250631,-582.98204263,0.00041643,17]
[418947965,1774618250640,-528.43260307,0.00041643,17]
[418947966,1774618250651,-158.87114382,0.00041643,17]
[418947967,1774618250660,-534.85026744,0.00041643,17]
[418947968,1774618250669,-509.89147242,0.00041643,17]